bitfinex/quotes_ETHUSD_20230701
["timestamp","ask_amount","ask_price","bid_price","bid_amount"]
[1688217632593,0.13152986,1929.6,1929.4,12.95737]
[1688217634091,0.13152986,1929.6,1929.4,12.9537084]
[1688217637728,2.8190517,1929.6,1929.4,12.9537084]
[1688217637904,2.68752184,1929.5,1929.1,5.18365]
[1688217638209,10.36601,1929.4,1929.0,10.36776]
[1688217638416,14.76423184,1929.4,1929.0,10.36776]
[1688217638840,14.76423184,1929.4,1929.0,10.36789]
[1688217642234,14.76423184,1929.4,1929.0,5.18386]
[1688217642448,1.47642318,1929.3,1929.0,5.18386]
[1688217642741,6.65972318,1929.3,1929.0,10.36789]
[1688217643395,6.65972318,1929.3,1929.0,5.18403]
[1688217643396,9.34724502,1929.3,1929.0,5.18403]
[1688217643597,4.16394502,1929.3,1929.0,12.96007]
[1688217644196,2.68752184,1929.3,1929.0,12.96007]
[1688217644707,1.7107,1929.4,1929.0,12.96007]
[1688217644923,1.7107,1929.4,1929.0,12.97653672]
[1688217645247,5.183,1929.4,1929.0,12.97653672]
[1688217645937,5.17581678,1929.4,1929.0,12.97653672]
[1688217646252,5.17581678,1929.4,1929.2,10.36698]
[1688217646400,10.36565,1929.5,1929.2,10.36698]
[1688217646600,10.77947201,1929.5,1929.2,10.36698]
[1688217648202,0.41382201,1929.5,1929.2,12.95872]
[1688217648633,1.89112986,1929.6,1929.2,12.95872]
[1688217648989,0.13152986,1929.6,1929.3,1.295872]
[1688217649137,0.13152986,1929.6,1929.4,10.3659]
[1688217653247,5.31402986,1929.6,1929.4,10.3659]
[1688217653615,5.31402986,1929.6,1929.4,5.18295]
[1688217654145,10.49652986,1929.6,1929.4,5.18291]
[1688217654347,10.49652986,1929.6,1929.3,6.478932]
[1688217654501,13.08773986,1929.6,1929.2,5.19976501]
[1688217654708,13.08773986,1929.6,1929.3,5.18321]
[1688217655553,10.49652986,1929.6,1929.3,5.18321]
[1688217655767,10.49652986,1929.6,1929.3,10.36643]
[1688217656354,0.13152986,1929.6,1929.3,12.95804]
[1688217656521,0.13152986,1929.6,1929.4,1.295804]
[1688217656858,5.31395986,1929.6,1929.2,5.12606501]
[1688217657026,10.49638986,1929.6,1929.3,10.36606]
[1688217662230,13.1839117,1929.6,1929.2,0.01646501]
[1688217662437,2.68752184,1929.5,1928.9,7.06144]
[1688217662640,13.22667218,1929.4,1928.9,7.06147]
[1688217662989,15.91419402,1929.4,1928.9,12.24575]
[1688217663675,15.91419402,1929.4,1928.9,14.8379]
[1688217667242,15.64544184,1929.4,1928.9,14.8379]
[1688217667583,13.05386184,1929.4,1929.0,0.01646672]
[1688217667781,5.18317,1929.4,1929.0,10.38441672]
[1688217667953,5.18317,1929.4,1929.0,5.20038672]
[1688217668279,10.36634,1929.4,1929.0,5.20038672]
[1688217668474,10.36634,1929.4,1929.0,6.78007239]
[1688217669169,5.18317,1929.4,1929.0,6.78007239]
[1688217669473,10.36634,1929.4,1929.0,11.96410239]
[1688217669775,12.95781,1929.4,1929.0,6.78007239]
[1688217670069,12.95781,1929.4,1929.0,5.20038672]
[1688217672042,10.36634,1929.4,1929.0,5.20038672]
[1688217674105,12.95781,1929.4,1929.0,10.38441672]
[1688217674283,10.36634,1929.4,1929.0,10.38441672]
[1688217674850,10.36634,1929.4,1929.0,12.97642672]
[1688217675044,10.36634,1929.4,1929.1,1.29764267]
[1688217675256,5.18317,1929.4,1929.1,6.48136267]
[1688217675657,5.18295,1929.4,1929.1,6.48136267]
[1688217676004,10.36566,1929.5,1929.1,6.48136267]
[1688217676850,5.18281,1929.5,1929.1,6.48136267]
[1688217677181,5.18281,1929.5,1929.2,0.64813627]
[1688217677381,10.36566,1929.5,1929.2,0.64813627]
[1688217679089,10.36566,1929.5,1929.1,1.29764267]
[1688217679868,12.957,1929.5,1929.1,1.29764267]
[1688217680064,12.957,1929.5,1929.0,0.01646672]
[1688217680753,12.9582,1929.3,1929.0,0.01646672]
[1688217685795,12.9582,1929.3,1929.0,0.95946672]
[1688217685796,10.36656,1929.3,1929.0,0.95946672]
[1688217685998,10.36656,1929.3,1929.0,6.14348672]
[1688217686195,10.36656,1929.3,1929.0,7.46396939]
[1688217687472,10.36656,1929.3,1929.0,12.64799939]
[1688217690465,5.18328,1929.3,1929.0,12.64799939]
[1688217692066,5.18328,1929.3,1929.0,11.70499939]
[1688217694415,5.18328,1929.3,1929.0,14.29700939]
[1688217694567,5.18328,1929.3,1929.2,5.18349]
[1688217695005,12.09184,1929.4,1929.2,5.18349]
[1688217695504,10.36624,1929.4,1929.2,5.18349]
[1688217699884,5.18311,1929.4,1929.2,10.36698]
[1688217702015,0.13152986,1929.6,1929.2,12.95872]
[1688217702201,0.4201986,1929.7,1929.3,2.230872]
[1688217702509,5.18218,1929.7,1929.4,10.3658]
[1688217702887,10.36436,1929.7,1929.4,10.3658]
[1688217705188,12.95543,1929.7,1929.3,1.295872]
[1688217705401,14.71923,1929.7,1929.3,5.1832]
[1688217705898,14.71923,1929.7,1929.2,5.19977501]
[1688217706483,14.71923,1929.7,1929.2,10.38326501]
[1688217706825,14.71923,1929.7,1929.2,5.19977501]
[1688217707821,14.71923,1929.7,1929.2,10.38326501]
[1688217708214,14.71923,1929.7,1929.2,5.19977501]
[1688217708528,14.71923,1929.7,1929.2,10.38326501]
[1688217708881,14.71923,1929.7,1929.2,11.77507551]
[1688217709082,1.7638,1929.7,1929.2,1.40827551]
[1688217709283,14.7192,1929.7,1929.2,5.19995501]
[1688217709819,14.7192,1929.7,1929.2,10.38344501]
[1688217710121,14.7192,1929.7,1929.2,12.97518501]
[1688217710812,14.7192,1929.7,1929.2,14.56168501]
[1688217712645,12.12813,1929.7,1929.2,14.56168501]
[1688217712846,12.54600079,1929.7,1929.4,10.3658]
[1688217713214,2.18167079,1929.7,1929.4,10.3658]
[1688217713420,0.41787079,1929.7,1929.4,12.95727]
[1688217713767,6.9449987,1929.8,1929.4,12.95727]
[1688217713917,6.9449987,1929.8,1929.4,14.796706]
[1688217714809,12.1269587,1929.8,1929.4,14.796706]
[1688217716450,6.9449987,1929.8,1929.4,14.796706]
[1688217716811,12.1269587,1929.8,1929.4,14.796706]
[1688217719543,6.9449987,1929.8,1929.4,14.796706]
[1688217719941,6.9449687,1929.8,1929.4,14.796706]
[1688217721055,12.1268487,1929.8,1929.4,14.796706]
[1688217721246,1.7630887,1929.8,1929.4,14.796706]
[1688217721443,1.7630887,1929.8,1929.5,6.6622306]
[1688217721977,12.59557679,1929.9,1929.5,6.6622306]
[1688217721978,5.60670679,1929.9,1929.5,14.4362506]
[1688217723052,5.73689542,1929.9,1929.5,14.4362506]
[1688217724024,11.86151542,1929.9,1929.4,5.18287]
[1688217724219,14.45231542,1929.9,1929.4,5.18287]
[1688217724721,14.45231542,1929.9,1929.4,10.36582]
[1688217724922,17.13983726,1929.9,1929.4,5.18287]
[1688217725365,17.13983726,1929.9,1929.3,10.36619]
[1688217725574,10.36444,1929.7,1929.3,10.36619]
[1688217725733,10.36444,1929.7,1929.3,12.9578]
[1688217726760,6.82715,1929.8,1929.3,12.9578]
[1688217726933,10.91884542,1929.9,1929.4,0.01646332]
[1688217727133,10.91884542,1929.9,1929.5,12.9564]
[1688217727441,12.56394542,1929.9,1929.5,12.9564]
[1688217727855,16.09774542,1929.9,1929.5,10.3651]
[1688217728062,16.09774542,1929.9,1929.5,5.18255]
[1688217728964,16.09774542,1929.9,1929.5,10.36523]
[1688217729857,16.09774542,1929.9,1929.5,5.18255]
[1688217730039,17.89986996,1929.9,1929.5,5.18255]
[1688217730441,17.89986996,1929.9,1929.4,9.42266332]
[1688217730442,17.89986996,1929.9,1929.4,12.01401332]
[1688217733766,20.5873918,1929.9,1929.4,5.19928332]
[1688217734273,20.5873918,1929.9,1929.4,10.38223332]
[1688217738247,20.5873918,1929.9,1929.4,5.19928332]
[1688217746020,4.74626102,1929.8,1929.0,2.59198]
[1688217746242,2.59126,1929.6,1928.8,1.903]
[1688217746525,12.95812,1929.3,1928.8,7.08747]
[1688217746682,15.64564184,1929.3,1928.8,7.08747]
[1688217746876,15.64564184,1929.3,1928.8,8.217726]
[1688217747125,16.58864184,1929.3,1928.8,8.217726]
[1688217747293,16.58864184,1929.3,1928.8,3.033256]
[1688217747294,18.38064184,1929.3,1928.8,3.033256]
[1688217747483,18.38064184,1929.3,1928.8,8.217806]
[1688217750229,18.38064184,1929.3,1928.8,13.402376]
[1688217750630,20.66526802,1929.3,1928.8,8.217806]
[1688217750953,20.66526802,1929.3,1928.8,7.08755]
[1688217751158,20.66526802,1929.3,1928.8,7.08756]
[1688217751323,3.63052184,1929.2,1928.7,0.01646928]
[1688217751528,7.77624,1929.0,1928.6,0.4063371]
[1688217751766,12.9604,1929.0,1928.5,3.3989]
[1688217751937,12.9604,1929.0,1928.5,9.45545679]
[1688217752132,12.9604,1929.0,1928.5,14.64082679]
[1688217752560,12.9604,1929.0,1928.5,4.27014679]
[1688217752756,12.9604,1929.0,1928.5,8.58419]
[1688217752961,12.9604,1929.0,1928.5,13.76956]
[1688217753375,12.9604,1929.0,1928.5,8.58419]
[1688217754539,12.9604,1929.0,1928.5,13.76956]
[1688217755075,12.9604,1929.0,1928.5,8.58419]
[1688217755374,14.968035,1929.0,1928.5,3.3989]
[1688217755670,14.968035,1929.0,1928.5,13.76959]
[1688217757140,12.9604,1929.0,1928.5,13.76959]
[1688217757364,2.68752184,1928.9,1928.5,11.80599]
[1688217757579,12.96152,1928.8,1928.5,6.62067]
[1688217758081,10.36924,1928.8,1928.5,6.62067]
[1688217758235,10.36924,1928.8,1928.5,10.37074]
[1688217761246,12.10000418,1928.8,1928.5,10.37074]
[1688217761647,10.36924,1928.8,1928.5,10.37074]
[1688217763580,12.96152,1928.8,1928.4,1.92774207]
[1688217763757,12.96152,1928.8,1928.4,0.42134207]
[1688217763961,12.96152,1928.8,1928.4,5.60693207]
[1688217764144,12.96152,1928.8,1928.4,10.79257207]
[1688217766776,12.96152,1928.8,1928.4,11.59555554]
[1688217767681,12.96152,1928.8,1928.4,6.40991554]
[1688217768054,12.96152,1928.8,1928.4,1.22432554]
[1688217768601,12.96152,1928.8,1928.4,6.40993554]
[1688217771316,12.96152,1928.8,1928.4,1.22432554]
[1688217771612,12.96152,1928.8,1928.4,11.59550554]
[1688217772269,10.36924,1928.8,1928.4,11.59550554]
[1688217772470,10.36924,1928.8,1928.4,14.18832554]
[1688217772688,5.18462,1928.8,1928.4,14.18832554]
[1688217774405,10.36924,1928.8,1928.4,14.18832554]
[1688217776502,10.36924,1928.8,1928.4,11.59550554]
[1688217776802,12.96152,1928.8,1928.4,11.59550554]
[1688217778409,9.53065184,1928.9,1928.5,1.15955055]
[1688217778602,14.71511184,1928.9,1928.5,11.53018055]
[1688217778792,10.36889,1928.9,1928.5,11.53018055]
[1688217779205,10.36889,1928.9,1928.5,14.12286055]
[1688217780023,5.1839,1929.1,1928.5,15.06586055]
[1688217780303,10.36835,1929.0,1928.7,5.18478]
[1688217782914,1.8022,1929.4,1928.7,13.90002]
[1688217782915,2.59155,1929.4,1928.7,13.90002]
[1688217783226,10.36684,1929.3,1928.8,0.943]
[1688217783422,10.36684,1929.3,1928.9,10.36824]
[1688217783721,10.36684,1929.3,1928.9,11.758586]
[1688217783888,12.95845,1929.3,1928.9,11.758586]
[1688217785296,12.95845,1929.3,1928.6,3.14008606]
[1688217785497,17.32077184,1929.3,1928.8,5.18442]
[1688217785905,17.32077184,1929.3,1928.8,5.18456]
[1688217786195,17.32077184,1929.3,1928.8,5.18454]
[1688217787046,17.32077184,1929.3,1928.8,10.36911]
[1688217787314,14.72916184,1929.3,1928.8,10.36911]
[1688217787513,10.36684,1929.3,1928.9,1.05337858]
[1688217787718,10.36684,1929.3,1929.0,10.36798]
[1688217788589,0.405599,1929.4,1929.0,12.95999]
[1688217788788,5.588609,1929.4,1929.0,12.95999]
[1688217789005,4.7388,1929.6,1929.0,12.95999]
[1688217789322,9.92133,1929.6,1929.1,0.943]
[1688217789526,5.18269,1929.5,1929.2,10.36681]
[1688217789697,5.18269,1929.5,1929.2,5.18336]
[1688217789698,10.36538,1929.5,1929.2,5.18336]
[1688217789895,10.36538,1929.5,1929.1,2.9709]
[1688217789896,12.95672,1929.5,1929.1,12.3952]
[1688217790929,12.95672,1929.5,1929.1,2.0279]
[1688217791507,14.985397,1929.5,1929.0,11.99328672]
[1688217791728,14.985397,1929.5,1929.0,6.80936672]
[1688217792103,14.985397,1929.5,1929.0,8.75746672]
[1688217793948,14.985397,1929.5,1929.0,1.96456672]
[1688217793949,17.67291884,1929.5,1929.0,1.96456672]
[1688217794133,18.61591884,1929.5,1928.8,5.18443]
[1688217794330,18.61591884,1929.5,1928.8,7.09783]
[1688217794331,3.55079188,1929.4,1928.8,7.09783]
[1688217794597,12.9586,1929.3,1928.8,12.28225]
[1688217794738,12.9586,1929.3,1928.8,13.89965]
[1688217797356,12.9586,1929.3,1928.8,8.71522]
[1688217797501,14.60953919,1929.3,1928.8,13.89979]
[1688217797698,14.60953919,1929.3,1928.8,12.28239]
[1688217803717,14.60953919,1929.3,1928.8,7.09782]
[1688217803718,17.29706103,1929.3,1928.8,7.09782]
[1688217805053,3.63052184,1929.2,1928.4,6.12049]
[1688217805276,12.96035,1929.0,1928.4,3.5835]
[1688217805557,15.64787184,1929.0,1928.4,2.0629]
[1688217805759,12.96175,1928.8,1928.4,5.18559]
[1688217805968,14.52667718,1928.8,1928.4,5.18559]
[1688217806143,14.52667718,1928.8,1928.4,10.37123]
[1688217806948,14.52667718,1928.8,1928.4,5.18559]
[1688217807147,14.52667718,1928.8,1928.3,12.27693]
[1688217807471,14.52667718,1928.8,1928.3,7.09109]
[1688217808139,17.21419902,1928.8,1928.3,1.9053]
[1688217808469,17.21419902,1928.8,1928.2,5.20246355]
[1688217808470,4.40894174,1928.7,1928.2,5.20246355]
[1688217808637,12.9631,1928.6,1928.2,5.20246355]
[1688217811071,12.9631,1928.6,1928.2,0.01647355]
[1688217811565,12.9631,1928.6,1928.2,5.20264355]
[1688217811771,10.37048,1928.6,1928.2,6.43207191]
[1688217811986,10.37048,1928.6,1928.2,11.61825191]
[1688217812351,10.36999,1928.7,1928.2,15.15034191]
[1688217812541,5.18494,1928.7,1928.2,14.21134191]
[1688217813278,12.96228,1928.7,1928.2,14.21134191]
[1688217814251,14.258508,1928.7,1928.2,10.38882355]
[1688217814947,16.014408,1928.7,1928.2,10.38882355]
[1688217816656,10.36987,1928.7,1928.2,10.38882355]
[1688217816861,2.59231,1928.8,1928.3,0.943]
[1688217816862,5.18465,1928.8,1928.3,0.943]
[1688217817104,5.18465,1928.8,1928.4,5.18561]
[1688217817386,5.18465,1928.8,1928.4,11.30625]
[1688217817558,5.18465,1928.8,1928.5,1.130625]
[1688217817746,5.18465,1928.8,1928.5,6.315825]
[1688217817946,5.18465,1928.8,1928.5,11.501195]
[1688217819588,10.36933,1928.8,1928.5,11.501195]
[1688217821290,12.96161,1928.8,1928.5,5.1852]
[1688217821598,12.96161,1928.8,1928.4,11.32251185]
[1688217822266,12.96161,1928.8,1928.4,0.01647185]
[1688217822994,14.68341,1928.8,1928.4,0.01647185]
[1688217824892,14.68341,1928.8,1928.4,5.20207185]
[1688217826500,16.410966,1928.8,1928.4,0.01647185]
[1688217828006,19.09848784,1928.8,1928.4,0.01647185]
[1688217828222,2.68752184,1928.7,1928.1,1.9053]
[1688217828381,12.9633,1928.6,1928.1,8.7125]
[1688217828581,14.6766,1928.6,1928.1,9.71985035]
[1688217828908,14.6766,1928.6,1928.1,14.90630035]
[1688217834218,14.6766,1928.6,1928.1,9.71985035]
[1688217834426,14.6766,1928.6,1928.1,8.7125]
[1688217836023,14.6766,1928.6,1928.1,7.0916]
[1688217837497,17.36412184,1928.6,1928.1,7.09171]
[1688217845910,17.36412184,1928.6,1928.1,5.18641]
[1688217846109,4.42393402,1928.5,1927.8,2.29470725]
[1688217846310,15.55782,1928.3,1927.8,8.77574]
[1688217846518,0.943,1928.2,1927.6,0.54017208]
[1688217846723,12.96665,1928.1,1927.6,4.14267208]
[1688217847025,14.781786,1928.1,1927.7,0.90130677]
[1688217847648,14.781786,1928.1,1927.3,1.35215972]
[1688217847649,12.9682,1927.8,1927.3,7.77057208]
[1688217847941,12.9682,1927.8,1927.4,0.90142186]
[1688217848938,12.9682,1927.8,1927.4,6.08974186]
[1688217849140,12.9682,1927.8,1927.3,2.9895609]
[1688217849341,12.9682,1927.8,1927.4,0.90143704]
[1688217849342,14.689229,1927.8,1927.4,0.90143704]
[1688217849528,14.689229,1927.8,1927.3,7.63797882]
[1688217850345,14.689229,1927.8,1927.3,2.44938882]
[1688217850346,17.37675084,1927.8,1927.3,2.44938882]
[1688217850514,17.37675084,1927.8,1927.3,0.40758882]
[1688217850950,17.37675084,1927.8,1927.2,7.42145473]
[1688217851153,17.37675084,1927.8,1927.3,0.90147509]
[1688217851154,1.73767508,1927.7,1927.3,0.90147509]
[1688217851451,12.96962,1927.6,1927.3,0.90147509]
[1688217851647,12.96962,1927.6,1927.2,7.16590949]
[1688217851829,12.96962,1927.6,1927.2,10.79407949]
[1688217852549,12.96962,1927.6,1927.2,5.60520949]
[1688217852753,12.96962,1927.6,1927.2,10.79407949]
[1688217853076,12.96962,1927.6,1927.2,5.60520949]
[1688217853250,12.96962,1927.6,1927.2,10.79407949]
[1688217853635,10.3757,1927.6,1927.2,13.38850949]
[1688217853970,12.96959,1927.6,1927.2,5.60520949]
[1688217854173,12.96959,1927.6,1927.2,10.79407949]
[1688217854378,12.96959,1927.6,1927.2,5.60520949]
[1688217854682,12.96959,1927.6,1927.2,10.79407949]
[1688217854909,12.96959,1927.6,1927.2,5.60520949]
[1688217855990,12.96959,1927.6,1927.2,5.60523949]
[1688217856318,12.96959,1927.6,1927.2,5.18879]
[1688217856614,12.96959,1927.6,1927.2,10.37766]
[1688217859232,14.60518651,1927.6,1927.2,5.18876]
[1688217859783,14.60518651,1927.6,1927.1,12.86665716]
[1688217860129,17.19907651,1927.6,1927.1,7.67762716]
[1688217860540,14.60518651,1927.6,1927.1,12.86676716]
[1688217860996,14.60518651,1927.6,1927.1,17.26564126]
[1688217861201,12.96959,1927.6,1927.1,18.20864126]
[1688217862812,12.96959,1927.6,1927.1,18.07639777]
[1688217865213,10.3757,1927.6,1927.1,18.07639777]
[1688217865414,5.18785,1927.6,1927.2,0.937]
[1688217865618,5.18785,1927.6,1927.3,10.3771]
[1688217866341,10.3757,1927.6,1927.3,10.3771]
[1688217869020,4.44772184,1927.8,1927.3,12.9714]
[1688217869363,10.37424,1927.9,1927.3,15.30524]
[1688217869567,10.37436,1927.9,1927.4,0.943]
[1688217869801,5.18734,1927.8,1927.5,10.3759]
[1688217870070,10.37468,1927.8,1927.5,10.3759]
[1688217872040,5.18734,1927.8,1927.5,10.3759]
[1688217872226,10.37436,1927.9,1927.5,12.121873]
[1688217872554,5.18717,1927.9,1927.5,12.121873]
[1688217874225,10.37436,1927.9,1927.5,12.121873]
[1688217874617,12.96785,1927.9,1927.5,6.933903]
[1688217874818,12.96785,1927.9,1927.4,9.6779]
[1688217874819,12.96785,1927.9,1927.4,4.4897]
[1688217875139,12.96785,1927.9,1927.4,3.5467]
[1688217875345,14.68685,1927.9,1927.4,3.5467]
[1688217875722,14.68685,1927.9,1927.4,1.9298]
[1688217876026,17.37437184,1927.9,1927.4,1.9298]
[1688217876226,1.73743718,1927.8,1927.4,1.9298]
[1688217876431,12.96895,1927.7,1927.4,1.9298]
[1688217877540,12.96895,1927.7,1927.4,7.11812]
[1688217878323,12.96895,1927.7,1927.4,5.18832]
[1688217879652,10.37516,1927.7,1927.4,10.37665]
[1688217880724,5.18735,1927.8,1927.4,14.26955012]
[1688217880965,10.37468,1927.8,1927.4,14.26955012]
[1688217883070,5.18733,1927.8,1927.4,11.67539012]
[1688217883454,5.18733,1927.8,1927.4,14.26955012]
[1688217883658,12.09327,1927.9,1927.5,1.42695501]
[1688217883878,5.18703,1927.9,1927.6,12.96921]
[1688217884067,10.37377,1928.0,1927.6,12.96921]
[1688217886769,5.18686,1928.0,1927.6,12.96921]
[1688217887156,6.8736,1928.1,1927.6,13.90821]
[1688217887351,6.8736,1928.1,1927.7,1.390821]
[1688217887581,12.06016,1928.1,1927.7,11.765651]
[1688217887784,6.87356,1928.1,1927.7,11.765651]
[1688217889083,12.06001,1928.1,1927.7,11.765651]
[1688217889383,6.87345,1928.1,1927.7,11.765651]
[1688217890778,12.0599,1928.1,1927.7,11.765651]
[1688217891889,6.87345,1928.1,1927.7,11.765651]
[1688217893267,1.687,1928.1,1927.8,1.1765651]
[1688217893474,5.18648,1928.1,1927.9,10.37398]
[1688217895394,0.41275398,1928.3,1927.9,5.18699]
[1688217895593,0.41275398,1928.3,1928.0,0.518699]
[1688217895794,5.18574,1928.4,1928.1,5.18645]
[1688217896007,10.37155,1928.4,1928.1,5.18645]
[1688217897307,12.96437,1928.4,1928.1,5.18645]
[1688217898267,10.37155,1928.4,1928.1,5.18645]
[1688217900684,10.37155,1928.4,1928.1,10.3729]
[1688217903809,12.96437,1928.4,1928.1,5.18645]
[1688217903998,14.682476,1928.4,1928.0,5.1866]
[1688217904203,14.682476,1928.4,1928.0,10.3732]
[1688217905285,12.96437,1928.4,1928.0,10.3732]
[1688217911131,16.58789184,1928.4,1927.7,5.1874]
[1688217911331,2.579,1928.3,1927.8,5.18722]
[1688217911531,12.96576,1928.2,1927.8,5.18722]
[1688217912590,12.96576,1928.2,1927.8,10.37448]
[1688217913516,12.96576,1928.2,1927.6,1.8971]
[1688217913517,15.654716,1928.2,1927.6,1.8971]
[1688217913717,1.7855,1928.1,1927.6,1.8971]
[1688217913933,12.96706,1928.0,1927.6,1.8971]
[1688217914613,12.96706,1928.0,1927.6,7.08488]
[1688217915295,12.96706,1928.0,1927.6,1.8971]
[1688217915710,12.96706,1928.0,1927.5,1.42695501]
[1688217915903,14.795942,1928.0,1927.4,10.3929104]
[1688217916105,1.7855,1927.9,1927.6,0.54017208]
[1688217916327,17.48346384,1928.0,1927.5,0.54017208]
[1688217916328,12.96815,1927.8,1927.5,0.54017208]
[1688217916733,12.96815,1927.8,1927.5,1.44154385]
[1688217917027,13.91115,1927.8,1927.6,0.90137177]
[1688217917329,13.91115,1927.8,1927.4,1.35425941]
[1688217917330,10.37558,1927.6,1927.4,5.18823]
[1688217918017,10.37558,1927.6,1927.3,10.37702]
[1688217918221,10.37558,1927.6,1927.4,5.18832]
[1688217918827,12.96947,1927.6,1927.3,5.1885]
[1688217919042,12.96947,1927.6,1927.2,12.34103]
[1688217919246,12.96947,1927.6,1927.3,5.1886]
[1688217920727,10.37558,1927.6,1927.3,5.1886]
[1688217921917,10.37558,1927.6,1927.2,14.39554349]
[1688217922925,10.37558,1927.6,1927.2,16.98997349]
[1688217923722,10.37558,1927.6,1927.2,14.39554349]
[1688217924024,12.96947,1927.6,1927.2,14.39554349]
[1688217924633,12.96947,1927.6,1927.2,13.9864123]
[1688217924847,10.37558,1927.6,1927.3,6.58709123]
[1688217926331,10.37558,1927.6,1927.3,1.39864123]
[1688217926332,12.96947,1927.6,1927.3,1.39864123]
[1688217926537,12.96947,1927.6,1927.2,7.15234]
[1688217926925,12.96947,1927.6,1927.1,10.39447297]
[1688217927140,12.96947,1927.6,1927.2,5.18887]
[1688217927459,12.96947,1927.6,1927.2,10.37774]
[1688217927658,12.96947,1927.6,1927.2,5.18887]
[1688217927847,12.96947,1927.6,1927.2,10.37774]
[1688217928057,12.96947,1927.6,1927.2,12.0774033]
[1688217928956,12.96947,1927.6,1927.2,1.6996633]
[1688217929264,12.96947,1927.6,1927.1,14.40225304]
[1688217929265,12.96947,1927.6,1927.1,9.21325304]
[1688217929658,12.96947,1927.6,1927.1,7.56185304]
[1688217929957,12.96947,1927.6,1927.1,12.75099304]
[1688217930723,12.96947,1927.6,1927.1,15.34556304]
[1688217930928,12.96947,1927.6,1927.2,1.5345563]
[1688217931124,12.96947,1927.6,1927.2,5.18869]
[1688217931330,0.943,1927.4,1927.0,1.7005]
[1688217931636,5.1886,1927.3,1927.0,6.88984]
[1688217931951,10.3772,1927.3,1927.0,7.30967195]
[1688217932264,10.3772,1927.3,1927.0,10.89858195]
[1688217932563,5.1886,1927.3,1927.0,12.44320115]
[1688217932865,12.9715,1927.3,1927.0,2.06445115]
[1688217933069,10.3772,1927.3,1927.0,2.06445115]
[1688217933542,10.3772,1927.3,1927.0,7.25385115]
[1688217933736,5.1886,1927.3,1927.0,7.25385115]
[1688217933942,5.1886,1927.3,1927.0,10.89864195]
[1688217934156,10.3772,1927.3,1927.0,10.89864195]
[1688217934356,5.1886,1927.3,1927.0,10.89864195]
[1688217935059,10.3772,1927.3,1927.0,10.89864195]
[1688217936065,5.1886,1927.3,1927.0,10.89864195]
[1688217937399,10.3772,1927.3,1927.0,0.1]
[1688217937938,12.9715,1927.3,1927.0,0.1]
[1688217939539,12.9715,1927.3,1927.0,5.28935]
[1688217939740,10.3772,1927.3,1927.0,10.47876]
[1688217942443,5.1886,1927.3,1927.0,10.47876]
[1688217942869,1.7342,1927.5,1927.0,15.756699]
[1688217942870,6.92238,1927.5,1927.0,15.756699]
[1688217943088,5.18835,1927.4,1927.0,15.77318282]
[1688217943940,12.11071,1927.5,1927.0,15.77318282]
[1688217947054,14.70474,1927.5,1927.0,15.77318282]
[1688217948579,12.11071,1927.5,1927.0,15.77318282]
[1688217950846,1.7342,1927.5,1927.0,15.77318282]
[1688217951075,6.95706,1927.6,1927.1,1.57731828]
[1688217951250,6.95706,1927.6,1927.2,10.37752]
[1688217951251,12.14511,1927.6,1927.2,10.37752]
[1688217953888,14.739,1927.6,1927.2,10.37752]
[1688217954574,14.739,1927.6,1927.1,5.18899]
[1688217954943,14.739,1927.6,1927.0,5.30571382]
[1688217954944,2.68752184,1927.5,1927.0,5.30571382]
[1688217955251,13.23991218,1927.4,1927.0,10.49503382]
[1688217955444,15.01071218,1927.4,1927.0,10.49503382]
[1688217955800,12.41649218,1927.4,1927.0,10.49503382]
[1688217958486,6.95927,1927.4,1927.0,13.08973382]
[1688217959184,12.14774,1927.4,1927.0,13.08973382]
[1688217967318,12.14774,1927.4,1927.0,0.1]
[1688217967319,17.42942184,1927.4,1927.0,0.1]
[1688217967490,14.83526184,1927.4,1927.0,13.02348]
[1688217968292,16.57819402,1927.4,1927.0,13.02348]
[1688217968488,19.17235402,1927.4,1927.0,0.05]
[1688217968688,19.17235402,1927.4,1927.0,5.23937]
[1688217969312,19.17235402,1927.4,1927.0,0.05]
[1688217969484,1.9172354,1927.3,1927.0,5.2394]
[1688217969685,5.18887,1927.2,1927.0,5.2394]
[1688217969885,10.37774,1927.2,1927.0,5.2394]
[1688217970389,12.97217,1927.2,1927.0,0.05]
[1688217971683,15.65969184,1927.2,1927.0,0.05]
[1688217971882,14.53881918,1927.1,1927.0,0.05]
[1688217974715,17.22634102,1927.1,1927.0,0.05]
[1688217976036,21.16934102,1927.1,1927.0,0.05]
[1688217977603,21.64934102,1927.1,1927.0,0.05]
[1688217983042,22.07023641,1927.1,1927.0,0.05]
[1688217990365,19.08126723,1927.1,1927.0,0.05]
[1688217990574,5.61003539,1927.1,1927.0,0.05]
[1688217990784,10.79917539,1927.1,1927.0,0.05]
[1688217991147,13.39374539,1927.1,1927.0,0.05]
[1688217992749,10.79917539,1927.1,1927.0,0.05]
[1688217992996,0.42089539,1927.1,1927.0,0.06648382]
[1688217993149,5.18905,1927.2,1927.0,0.06648382]
[1688217993150,10.37818,1927.2,1927.0,0.06648382]
[1688217993348,10.37818,1927.2,1927.0,5.25589382]
[1688217993989,10.37818,1927.2,1927.0,0.06648382]
[1688217994188,10.37818,1927.2,1927.0,0.05]
[1688217994350,16.95738084,1927.2,1927.0,0.05]
[1688217997185,15.66013184,1927.2,1927.0,0.05]
[1688218002811,12.97261,1927.2,1927.0,0.05]
[1688218003017,10.37818,1927.2,1927.0,0.05]
[1688218003318,10.37813,1927.2,1927.0,0.05]
[1688218005219,5.18905,1927.2,1927.0,5.23938]
[1688218005431,5.18905,1927.2,1927.0,10.42879]
[1688218005589,5.18905,1927.2,1927.0,5.23938]
[1688218005795,10.37792,1927.2,1927.0,5.23938]
[1688218005993,5.18887,1927.2,1927.0,5.23938]
[1688218007125,5.18876,1927.3,1927.0,5.23938]
[1688218007303,13.06507184,1927.3,1927.0,5.23938]
[1688218007504,13.06507184,1927.3,1927.0,0.05]
[1688218008023,0.41041435,1927.4,1927.0,11.471655]